bitfinex/quotes_SOLUSD_20250403
["timestamp","ask_amount","ask_price","bid_price","bid_amount"]
[1743704094172,136.0,114.19,114.15,21.9001]
[1743704094378,136.0,114.19,114.15,49.1217268]
[1743704095076,136.0,114.22,114.18,27.2216268]
[1743704095268,177.5433268,114.23,114.18,27.2216268]
[1743704095588,150.3217,114.23,114.18,27.2216268]
[1743704095880,1.5913,114.25,114.2,27.2216268]
[1743704096062,162.6238,114.26,114.22,8.755]
[1743704096376,162.6238,114.26,114.22,35.9766268]
[1743704096982,189.8454268,114.26,114.22,8.755]
[1743704097276,162.6238,114.26,114.22,35.9766268]
[1743704097668,189.8454268,114.26,114.22,35.9766268]
[1743704098069,189.8454268,114.26,114.21,27.2216268]
[1743704099086,144.04216157,114.27,114.23,27.2216268]
[1743704099264,8.04216157,114.27,114.23,27.2216268]
[1743704100476,0.14216157,114.26,114.23,8.754]
[1743704100676,27.2216268,114.25,114.22,8.7547]
[1743704100886,47.64811151,114.26,114.22,8.7547]
[1743704101179,27.2216268,114.26,114.22,8.7547]
[1743704101383,7.9,114.27,114.22,35.9763268]
[1743704101384,27.2216268,114.27,114.22,35.9763268]
[1743704101585,27.2216268,114.27,114.22,57.8638268]
[1743704101973,27.2216268,114.27,114.23,27.2216268]
[1743704102178,27.2216268,114.29,114.25,27.2216268]
[1743704102373,169.5915268,114.3,114.26,8.7519]
[1743704102569,141.2501,114.31,114.26,57.8534268]
[1743704102886,3.67,114.31,114.28,27.2216268]
[1743704104172,30.8916268,114.31,114.26,30.6318]
[1743704104371,27.2216268,114.3,114.26,30.6318]
[1743704104685,30.8916268,114.31,114.26,57.8534268]
[1743704104892,27.2216268,114.3,114.26,35.9735268]
[1743704105193,27.2216268,114.29,114.26,8.7519]
[1743704105565,12.4181,114.31,114.26,8.7519]
[1743704105566,27.2216268,114.3,114.26,8.7519]
[1743704105965,139.67,114.31,114.26,8.7519]
[1743704106175,139.67,114.31,114.27,27.2216268]
[1743704106362,139.67,114.31,114.28,35.9720268]
[1743704106577,166.8916268,114.31,114.27,8.7512]
[1743704106785,27.2216268,114.3,114.26,27.2216268]
[1743704107102,27.2216268,114.3,114.25,27.2216268]
[1743704107686,27.2216268,114.3,114.25,35.9743268]
[1743704107884,166.8916268,114.31,114.26,27.2216268]
[1743704108062,27.2216268,114.3,114.25,27.2216268]
[1743704108265,27.2216268,114.3,114.24,30.637]
[1743704108485,27.2216268,114.29,114.24,57.8586268]
[1743704108664,27.2216268,114.3,114.24,30.637]
[1743704108864,27.2216268,114.29,114.24,57.8586268]
[1743704109478,27.2216268,114.29,114.24,35.9751268]
[1743704109691,27.2216268,114.28,114.24,8.7535]
[1743704110380,27.2216268,114.27,114.24,8.7535]
[1743704111263,27.2216268,114.27,114.23,8.7538]
[1743704111467,27.2216268,114.26,114.22,27.2216268]
[1743704111696,27.2216268,114.27,114.22,35.9764268]
[1743704112369,35.9729268,114.27,114.22,35.9764268]
[1743704112789,27.2216268,114.27,114.22,35.9764268]
[1743704113202,35.9729268,114.27,114.22,8.7548]
[1743704113386,35.9729268,114.27,114.22,35.9764268]
[1743704113589,27.2216268,114.27,114.22,35.9764268]
[1743704114089,35.9729268,114.27,114.22,35.9764268]
[1743704116095,27.2216268,114.23,114.21,8.7558]
[1743704116291,163.2216268,114.25,114.21,8.7558]
[1743704116591,136.0,114.25,114.21,35.9774268]
[1743704117575,7.9,114.26,114.22,27.2216268]
[1743704117775,47.2216268,114.27,114.22,27.2216268]
[1743704117974,55.9728268,114.27,114.22,27.2216268]
[1743704118191,47.2216268,114.27,114.23,8.7542]
[1743704118387,146.2647,114.32,114.26,27.2216268]
[1743704118677,27.2216268,114.31,114.27,27.2216268]
[1743704118887,27.2216268,114.3,114.25,28.8533268]
[1743704119383,20.0,114.31,114.25,1.6317]
[1743704119585,27.2216268,114.29,114.25,1.6317]
[1743704120074,27.2216268,114.28,114.23,57.8614268]
[1743704120900,7.9,114.3,114.24,27.2216268]
[1743704121099,27.2216268,114.28,114.24,27.2216268]
[1743704121502,27.2216268,114.29,114.24,27.2216268]
[1743704121795,163.2216268,114.31,114.26,27.2216268]
[1743704121998,28.7387268,114.32,114.27,27.2216268]
[1743704122303,28.7387268,114.32,114.28,8.7504]
[1743704123090,28.7387268,114.32,114.28,30.6264]
[1743704123286,6.0319,114.33,114.28,30.6264]
[1743704123502,157.80196157,114.35,114.28,57.8480268]
[1743704123693,6.2308,114.36,114.3,27.2216268]
[1743704123882,27.2216268,114.35,114.3,27.2216268]
[1743704124082,27.2216268,114.35,114.31,8.7481]
[1743704124390,6.2308,114.36,114.31,35.9697268]
[1743704124897,27.2216268,114.35,114.31,57.8400268]
[1743704125283,27.2216268,114.35,114.31,30.6184]
[1743704126194,27.2216268,114.35,114.31,57.8400268]
[1743704126982,27.2216268,114.37,114.32,27.2216268]
[1743704127715,27.2216268,114.36,114.31,57.8400268]
[1743704128300,27.2216268,114.36,114.31,21.8703]
[1743704128502,27.2216268,114.35,114.31,21.8703]
[1743704129102,27.2216268,114.33,114.3,8.7489]
[1743704129506,27.2216268,114.34,114.3,8.7489]
[1743704129893,27.2216268,114.34,114.3,30.6211]
[1743704130594,27.2216268,114.33,114.3,30.6211]
[1743704131605,27.2216268,114.34,114.3,30.6211]
[1743704131801,27.9,114.35,114.3,30.6211]
[1743704131802,27.2216268,114.31,114.3,8.7489]
[1743704132004,27.2216268,114.33,114.3,8.7489]
[1743704132584,163.2216268,114.34,114.3,21.8722]
[1743704132785,27.2216268,114.34,114.3,21.8722]
[1743704133197,143.9,114.35,114.3,49.0938268]
[1743704133512,27.2216268,114.33,114.3,21.8722]
[1743704133699,27.2216268,114.33,114.29,8.7496]
[1743704134203,27.2216268,114.34,114.29,57.8453268]
[1743704134502,27.2216268,114.33,114.29,57.8453268]
[1743704134802,27.2216268,114.33,114.29,21.8741]
[1743704136005,163.9,114.35,114.32,26.0]
[1743704136213,27.2216268,114.34,114.32,26.0]
[1743704136710,27.2216268,114.34,114.32,34.7468]
[1743704137109,171.1216268,114.35,114.32,34.7468]
[1743704138109,35.1216268,114.35,114.32,34.7468]
[1743704139212,27.2216268,114.35,114.32,34.7468]
[1743704139514,27.2216268,114.35,114.32,8.7468]
[1743704140207,27.2216268,114.35,114.31,8.7481]
[1743704140605,27.2216268,114.34,114.31,8.7481]
[1743704140811,27.2216268,114.33,114.31,8.7481]
[1743704142117,27.2216268,114.33,114.3,21.8711]
[1743704142611,136.0,114.36,114.3,21.8711]
[1743704142816,27.2216268,114.34,114.3,21.8711]
[1743704143204,0.42648471,114.36,114.3,21.8711]
[1743704143407,27.2216268,114.34,114.3,21.8711]
[1743704144217,27.2216268,114.31,114.29,8.7496]
[1743704144604,27.2216268,114.31,114.29,30.6237]
[1743704145002,27.2216268,114.32,114.29,30.6237]
[1743704145913,136.0,114.34,114.29,101.5936268]
[1743704146721,136.0,114.34,114.3,27.2216268]
[1743704147505,136.0,114.34,114.31,30.6184]
[1743704148703,163.2216268,114.34,114.31,30.6184]
[1743704148898,163.2216268,114.34,114.31,8.7481]
[1743704149816,27.2216268,114.34,114.3,30.6211]
[1743704150599,27.2216268,114.35,114.3,30.6211]
[1743704151006,183.2216268,114.36,114.3,57.8427268]
[1743704151218,163.2216268,114.36,114.31,27.2216268]
[1743704151423,27.2216268,114.37,114.31,27.2216268]
[1743704151595,27.2216268,114.37,114.31,28.8224268]
[1743704152022,27.2216268,114.37,114.32,30.6157]
[1743704152628,10.3382,114.38,114.32,30.6157]
[1743704152801,27.2216268,114.37,114.32,57.8373268]
[1743704153197,142.0602,114.4,114.35,27.2216268]
[1743704153495,27.2216268,114.39,114.34,27.2216268]
[1743704154199,27.2216268,114.39,114.35,8.745]
[1743704155913,27.2216268,114.38,114.35,8.745]
[1743704156118,34.8014,114.4,114.35,8.745]
[1743704156119,27.2216268,114.37,114.35,8.745]
[1743704156303,27.2216268,114.37,114.34,21.8631]
[1743704156697,27.2216268,114.38,114.34,21.8631]
[1743704157129,27.2216268,114.39,114.34,49.0847268]
[1743704158417,27.2216268,114.39,114.34,57.8305268]
[1743704159908,27.2216268,114.37,114.34,8.7458]
[1743704160511,27.2216268,114.37,114.33,8.7466]
[1743704160702,27.2216268,114.36,114.33,8.7466]
[1743704162625,27.2216268,114.36,114.32,30.6157]
[1743704163312,27.2216268,114.36,114.32,8.7473]
[1743704163928,27.2216268,114.36,114.32,30.6157]
[1743704164322,27.64811151,114.37,114.32,30.6157]
[1743704164627,163.64811151,114.37,114.32,30.6157]
[1743704165129,163.64811151,114.37,114.32,8.7473]
[1743704165130,27.2216268,114.35,114.32,8.7473]
[1743704165310,27.2216268,114.34,114.32,8.7473]
[1743704165510,27.2216268,114.34,114.31,8.7477]
[1743704166741,27.2216268,114.34,114.3,30.62]
[1743704167037,30.2592,114.36,114.3,30.62]
[1743704167038,27.2216268,114.33,114.3,30.62]
[1743704167330,27.2216268,114.31,114.29,8.7492]
[1743704168425,27.2216268,114.31,114.27,1.6252]
[1743704168426,27.2216268,114.31,114.28,8.7504]
[1743704170334,136.0,114.33,114.28,8.7504]
[1743704170335,27.2216268,114.32,114.28,8.7504]
[1743704171041,27.2216268,114.32,114.28,30.6264]
[1743704171338,136.0,114.33,114.28,57.8480268]
[1743704171339,163.2216268,114.33,114.28,57.8480268]
[1743704171730,136.0,114.33,114.28,57.8480268]
[1743704171938,163.2216268,114.33,114.28,57.8480268]
[1743704172424,163.2216268,114.33,114.29,27.2216268]
[1743704173135,163.2216268,114.33,114.3,8.7489]
[1743704173331,27.2216268,114.34,114.3,8.7489]
[1743704173837,37.20678471,114.36,114.3,8.7489]
[1743704173838,53.2216268,114.33,114.3,30.6211]
[1743704174135,27.2216268,114.34,114.3,30.6211]
[1743704175610,27.2216268,114.32,114.3,8.7489]
[1743704175816,27.2216268,114.31,114.29,8.7492]
[1743704176034,27.2216268,114.31,114.28,8.75]
[1743704176829,27.2216268,114.3,114.28,8.75]
[1743704177614,27.2216268,114.29,114.25,8.7527]
[1743704177921,27.2216268,114.26,114.24,8.7535]
[1743704179337,27.2216268,114.26,114.23,8.7539]
[1743704179533,27.2216268,114.25,114.22,30.6415]
[1743704179710,27.2216268,114.25,114.22,8.755]
[1743704181534,27.2216268,114.26,114.22,8.755]
[1743704182518,163.2216268,114.28,114.23,27.2216268]
[1743704182718,136.0,114.28,114.24,27.2216268]
[1743704184748,136.0,114.28,114.25,8.7527]
[1743704185246,27.2216268,114.29,114.25,8.7527]
[1743704185755,27.2216268,114.29,114.25,30.6345]
[1743704189146,27.2216268,114.27,114.24,8.7535]
[1743704190429,27.2216268,114.26,114.24,8.7535]
[1743704190656,27.2216268,114.26,114.22,8.755]
[1743704190850,27.2216268,114.26,114.22,30.6425]
[1743704191568,27.2216268,114.26,114.22,57.8641268]
[1743704192560,27.2216268,114.26,114.22,30.6425]
[1743704196353,27.2216268,114.25,114.22,30.6425]
[1743704196556,27.2216268,114.25,114.22,8.755]
[1743704197342,27.2216268,114.23,114.18,21.8946]
[1743704197548,27.2216268,114.22,114.19,8.7573]
[1743704198651,27.2216268,114.22,114.18,57.8743268]
[1743704199336,27.2216268,114.22,114.18,30.6527]
[1743704199854,27.2216268,114.21,114.18,8.7581]
[1743704200033,27.2216268,114.2,114.18,8.7581]
[1743704200746,27.2216268,114.2,114.17,8.7588]
[1743704201858,27.2216268,114.19,114.17,8.7588]
[1743704202152,27.2216268,114.18,114.15,8.7604]
[1743704203640,27.2216268,114.17,114.15,8.7604]
[1743704203944,27.2216268,114.17,114.13,8.7619]
[1743704205155,156.0,114.18,114.13,30.6667]
[1743704205343,27.2216268,114.17,114.13,30.6667]
[1743704207863,163.2216268,114.18,114.13,57.8883268]
[1743704208154,136.0,114.18,114.15,35.9820268]
[1743704208453,27.2216268,114.2,114.15,35.9820268]
[1743704208662,163.2216268,114.21,114.16,27.2216268]
[1743704208962,27.2216268,114.21,114.16,27.2216268]
[1743704209462,55.1016268,114.22,114.17,27.2216268]
[1743704209665,47.2216268,114.22,114.17,27.2216268]
[1743704210040,47.2216268,114.22,114.18,8.7581]
[1743704210642,27.2216268,114.21,114.18,8.7581]
[1743704211043,20.0,114.22,114.18,30.6533]
[1743704211255,27.2216268,114.21,114.18,30.6533]
[1743704211962,27.2216268,114.21,114.18,8.7581]
[1743704212170,27.2216268,114.2,114.17,8.7588]
[1743704212350,27.2216268,114.21,114.17,8.7588]
[1743704212553,27.2216268,114.21,114.17,30.6559]
[1743704212750,20.0,114.22,114.17,57.8775268]
[1743704212950,47.2216268,114.22,114.17,57.8775268]
[1743704213457,27.2216268,114.22,114.17,57.8775268]
[1743704214465,27.2216268,114.21,114.17,57.8775268]
[1743704214678,27.2216268,114.21,114.17,30.6559]
[1743704215170,27.2216268,114.2,114.17,8.7588]
[1743704215473,27.2216268,114.21,114.17,8.7588]
[1743704216372,27.2216268,114.21,114.17,30.6559]
[1743704216777,20.0,114.22,114.17,57.8775268]
[1743704216778,27.2216268,114.22,114.17,57.8775268]
[1743704216962,27.2216268,114.21,114.17,8.7588]
[1743704217474,27.2216268,114.2,114.17,8.7588]
[1743704218374,20.0,114.22,114.17,35.9804268]
[1743704218672,27.64811151,114.22,114.17,35.9804268]
[1743704219685,27.64811151,114.22,114.17,57.8775268]
[1743704220171,27.2216268,114.21,114.17,8.7588]
[1743704220565,27.2216268,114.19,114.16,8.7592]
[1743704220766,27.2216268,114.18,114.15,8.76]
[1743704220973,27.2216268,114.19,114.15,8.76]
[1743704222757,163.2216268,114.2,114.15,35.9816268]
[1743704222959,163.2216268,114.2,114.15,57.8826268]
[1743704223159,27.2216268,114.19,114.15,8.76]
[1743704223483,27.2216268,114.18,114.15,8.76]
[1743704223779,27.2216268,114.19,114.14,35.9827268]
[1743704225085,27.2216268,114.18,114.14,8.7611]
[1743704226361,27.2216268,114.17,114.14,8.7611]
[1743704226572,27.2216268,114.16,114.13,8.7619]
[1743704227761,27.2216268,114.14,114.12,8.7622]
[1743704228278,156.0,114.16,114.11,8.7634]
[1743704228478,27.2216268,114.13,114.11,8.7634]
[1743704228981,27.2216268,114.14,114.11,8.7634]
[1743704230474,27.2216268,114.14,114.1,8.7642]
[1743704234488,27.2216268,114.15,114.1,57.8964268]
[1743704235488,27.2216268,114.13,114.1,30.6748]
[1743704235682,17.43525079,114.13,114.1,30.6748]
[1743704235868,17.43525079,114.13,114.1,8.7642]
[1743704236073,17.43525079,114.12,114.1,8.7642]
[1743704237079,17.43525079,114.11,114.08,8.7657]
[1743704238690,17.43525079,114.11,114.07,30.6828]
[1743704240280,17.43525079,114.12,114.07,48.11805079]
[1743704240483,20.0,114.14,114.09,17.43525079]
[1743704240689,37.43525079,114.14,114.1,30.6748]
[1743704241468,37.43525079,114.14,114.1,48.11005079]
[1743704242487,37.43525079,114.14,114.1,30.6748]
[1743704243693,47.24066216,114.14,114.1,30.6748]
[1743704245665,27.9,114.16,114.1,30.6748]
[1743704245868,27.24066216,114.14,114.1,30.6748]
[1743704246093,27.24066216,114.15,114.1,57.91546216]
[1743704247080,27.24066216,114.14,114.1,30.6748]
[1743704248003,27.24066216,114.12,114.1,30.6748]
[1743704248600,27.24066216,114.11,114.1,8.7642]
[1743704248775,20.42648471,114.14,114.1,8.7642]
[1743704248776,27.24066216,114.12,114.1,8.7642]
[1743704248970,27.24066216,114.11,114.1,8.7642]
[1743704249708,27.24066216,114.13,114.08,57.91966216]
[1743704249985,47.24066216,114.14,114.09,27.24066216]
[1743704250394,27.24066216,114.13,114.08,57.91966216]
[1743704250975,27.24066216,114.13,114.08,30.679]
[1743704251487,27.24066216,114.13,114.08,57.91966216]
[1743704252367,47.24066216,114.14,114.09,27.24066216]
[1743704254085,47.24066216,114.14,114.1,30.6748]
[1743704255101,27.24066216,114.15,114.1,57.91546216]
[1743704255289,27.24066216,114.16,114.11,27.24066216]
[1743704255811,35.751,114.17,114.11,27.24066216]
[1743704256014,27.24066216,114.16,114.12,30.6694]
[1743704257573,21.5096,114.17,114.12,57.91006216]
[1743704257778,7.9844,114.21,114.16,27.24066216]
[1743704258078,18.64964886,114.23,114.18,27.24066216]
[1743704258079,27.24066216,114.23,114.18,27.24066216]
[1743704258993,27.24066216,114.22,114.15,18.933972]
[1743704259182,27.24066216,114.22,114.17,27.24066216]
[1743704259388,27.38282373,114.23,114.19,8.7573]
[1743704259597,27.38282373,114.23,114.19,30.6506]
[1743704259983,0.42648471,114.23,114.19,30.6506]
[1743704260184,27.66714687,114.23,114.19,30.6506]
[1743704261001,27.24066216,114.22,114.19,30.6506]
[1743704261381,27.24066216,114.22,114.19,8.7573]
[1743704263415,27.24066216,114.23,114.19,8.7573]
[1743704263588,27.24066216,114.23,114.19,35.99796216]
[1743704264313,27.24066216,114.23,114.19,57.89126216]
[1743704264614,27.24066216,114.24,114.2,27.24066216]
[1743704264913,27.24066216,114.25,114.2,27.24066216]
[1743704265592,27.24066216,114.25,114.21,8.7558]
[1743704265804,27.24066216,114.25,114.21,30.6453]
[1743704266726,3.67,114.26,114.21,30.6453]
[1743704267019,27.24066216,114.23,114.21,8.7558]
[1743704267318,27.24066216,114.23,114.2,8.7561]
[1743704267521,27.24066216,114.22,114.19,8.7573]
[1743704269706,27.24066216,114.22,114.18,8.7581]
[1743704271105,27.24066216,114.22,114.18,30.6533]
[1743704271323,27.24066216,114.24,114.19,27.24066216]
[1743704272398,27.24066216,114.24,114.2,8.7565]
[1743704272602,27.24066216,114.23,114.2,8.7565]
[1743704273519,27.24066216,114.21,114.2,8.7565]
[1743704274532,27.24066216,114.21,114.18,8.7581]
[1743704275310,27.24066216,114.2,114.18,8.7581]
[1743704275635,27.24066216,114.21,114.18,30.6533]
[1743704275942,27.24066216,114.23,114.18,57.89396216]
[1743704277720,27.24066216,114.25,114.2,27.24066216]
[1743704278020,47.24066216,114.26,114.21,27.24066216]
[1743704278226,47.24066216,114.26,114.2,1.5633]
[1743704278227,27.24066216,114.25,114.2,1.5633]
[1743704278408,27.24066216,114.24,114.2,1.5633]
[1743704278608,27.24066216,114.25,114.2,28.80396216]
[1743704279012,27.24066216,114.26,114.21,27.24066216]
[1743704279216,28.90416216,114.27,114.22,57.88316216]
[1743704280307,27.24066216,114.27,114.22,57.88316216]
[1743704280611,33.52146216,114.28,114.23,27.24066216]
[1743704281014,27.24066216,114.28,114.23,27.24066216]
[1743704281227,27.24066216,114.28,114.24,8.7535]
[1743704281608,27.24066216,114.27,114.24,8.7535]
[1743704281945,27.24066216,114.26,114.22,8.755]
[1743704282808,27.24066216,114.25,114.22,8.755]
[1743704284235,27.66714687,114.27,114.22,8.755]
[1743704284430,27.24066216,114.26,114.22,8.755]
[1743704285016,27.66714687,114.27,114.22,49.12816216]
[1743704285617,27.24066216,114.27,114.22,49.12816216]
[1743704285826,21.73956157,114.3,114.24,27.24066216]
[1743704286132,27.24066216,114.29,114.24,27.24066216]
[1743704286912,27.24066216,114.28,114.23,27.24066216]
[1743704287131,27.24066216,114.26,114.23,8.7538]
[1743704287446,27.24066216,114.25,114.23,8.7538]
[1743704287736,27.24066216,114.26,114.23,8.7538]
[1743704288849,27.24066216,114.26,114.22,8.7547]
[1743704289047,27.24066216,114.23,114.19,27.24066216]
[1743704289215,27.24066216,114.24,114.2,8.7565]
[1743704289526,27.24066216,114.25,114.2,57.88856216]
[1743704289740,27.24066216,114.26,114.21,27.24066216]
[1743704290539,27.24066216,114.25,114.2,57.88856216]
[1743704291523,27.24066216,114.24,114.2,8.7565]
[1743704291729,27.24066216,114.22,114.19,8.7573]
[1743704293518,27.24066216,114.23,114.18,57.89346216]
[1743704293732,27.24066216,114.25,114.2,27.24066216]
[1743704293919,27.24066216,114.26,114.21,27.24066216]
[1743704295125,27.24066216,114.26,114.22,8.755]
[1743704295846,7.88,114.27,114.23,27.24066216]
[1743704296149,27.24066216,114.3,114.25,27.24066216]
[1743704296355,47.24066216,114.31,114.26,27.24066216]
[1743704296526,27.24066216,114.31,114.26,27.24066216]
[1743704297232,27.24066216,114.31,114.28,8.7504]
[1743704298729,27.24066216,114.32,114.28,8.7504]
[1743704298930,27.24066216,114.32,114.28,35.99106216]
[1743704299241,35.12066216,114.33,114.28,57.86706216]
[1743704299427,27.24066216,114.32,114.28,35.99106216]
[1743704299630,27.24066216,114.32,114.28,8.7504]
[1743704302255,35.98806216,114.32,114.28,8.7504]
[1743704302750,27.24066216,114.31,114.28,8.7504]
[1743704302936,27.24066216,114.31,114.27,8.7512]
[1743704303132,27.24066216,114.3,114.27,8.7512]
[1743704303957,27.24066216,114.29,114.24,49.12346216]
[1743704304450,27.24066216,114.28,114.25,8.7524]
[1743704304962,27.24066216,114.28,114.24,8.7535]
[1743704305255,27.24066216,114.27,114.24,8.7535]
[1743704306452,27.24066216,114.28,114.24,8.7535]
[1743704308143,35.99116216,114.28,114.24,8.7535]
[1743704308754,27.24066216,114.27,114.24,8.7535]
[1743704309053,35.12066216,114.26,114.21,8.7558]
[1743704309223,35.12066216,114.26,114.21,30.6453]
[1743704309429,27.24066216,114.24,114.21,30.6453]
[1743704309729,27.24066216,114.25,114.21,30.6453]
[1743704310331,27.24066216,114.24,114.21,30.6453]
[1743704311233,27.88,114.26,114.21,49.13016216]
[1743704311441,7.88,114.26,114.23,27.24066216]
[1743704311833,6.43706157,114.29,114.24,27.24066216]
[1743704312034,41.55772373,114.29,114.24,27.24066216]
[1743704312234,41.55772373,114.29,114.21,21.8895]
[1743704312426,41.55772373,114.29,114.24,27.24066216]
[1743704313249,41.55772373,114.29,114.25,8.7527]
[1743704314257,27.24066216,114.28,114.25,8.7527]
[1743704314439,27.24066216,114.27,114.24,8.7535]
[1743704315257,27.24066216,114.27,114.22,27.24066216]
[1743704316449,27.24066216,114.27,114.21,57.88516216]
[1743704316650,27.24066216,114.27,114.22,27.24066216]
[1743704317359,47.24066216,114.28,114.23,27.24066216]
[1743704318962,47.24066216,114.28,114.24,8.7535]
[1743704319475,41.55772373,114.29,114.24,35.99416216]
[1743704319636,14.31706157,114.29,114.24,35.99416216]
[1743704319838,35.12066216,114.29,114.24,57.87786216]
[1743704320163,7.88,114.29,114.25,27.24066216]
[1743704320463,35.12066216,114.29,114.24,57.87786216]
[1743704322750,27.24066216,114.3,114.25,27.24066216]
[1743704323058,35.12066216,114.3,114.25,27.24066216]
[1743704323358,27.24066216,114.29,114.26,8.7519]
[1743704324567,35.12066216,114.31,114.26,35.99256216]
[1743704324789,35.12066216,114.31,114.26,57.87246216]
[1743704324790,27.24066216,114.31,114.26,57.87246216]
[1743704324941,27.24066216,114.31,114.27,27.24066216]
[1743704325455,27.24066216,114.31,114.28,8.7504]
[1743704327671,27.24066216,114.31,114.27,8.7512]
[1743704327857,35.10066216,114.31,114.27,8.7512]
[1743704328559,27.24066216,114.31,114.27,8.7512]
[1743704328767,35.10066216,114.31,114.27,8.7512]
[1743704330071,43.84896216,114.31,114.27,8.7512]
[1743704330243,27.24066216,114.3,114.27,8.7512]
[1743704331252,35.10066216,114.31,114.27,8.7512]
[1743704331971,27.24066216,114.3,114.27,8.7512]
[1743704333860,27.24066216,114.29,114.26,8.7519]
[1743704334248,27.24066216,114.3,114.26,8.7519]
[1743704334450,35.10066216,114.31,114.26,57.87246216]
[1743704334756,35.10066216,114.31,114.26,30.6318]
[1743704334954,35.10066216,114.31,114.26,57.87246216]
[1743704335150,43.84876216,114.31,114.26,8.7519]
[1743704335354,27.24066216,114.3,114.26,8.7519]
[1743704336062,27.24066216,114.3,114.25,35.99336216]
[1743704336567,43.84876216,114.31,114.25,35.99336216]
[1743704336875,35.10066216,114.31,114.25,57.87516216]
[1743704338947,7.86,114.31,114.25,57.87516216]
[1743704339147,35.10066216,114.31,114.25,57.87516216]
[1743704339563,27.24066216,114.3,114.25,57.87516216]
[1743704340665,156.0,114.32,114.25,8.7527]
[1743704340974,157.5609,114.34,114.29,27.24066216]
[1743704341148,47.24066216,114.32,114.27,27.24066216]
[1743704341353,27.24066216,114.31,114.25,64.15356216]
[1743704341554,183.24066216,114.32,114.25,64.15356216]
[1743704342374,156.0,114.32,114.26,27.24066216]
[1743704342755,164.7475,114.32,114.26,27.24066216]
[1743704342972,191.98816216,114.32,114.25,64.15356216]
[1743704343163,20.0,114.32,114.29,26.0]
[1743704343358,156.0,114.37,114.3,27.24066216]
[1743704343547,197.28821606,114.37,114.31,27.24066216]
[1743704343752,17.36525971,114.36,114.3,17.36525971]
[1743704343952,17.36525971,114.35,114.29,43.36525971]
[1743704344151,17.36525971,114.34,114.28,25.22525971]
[1743704344378,17.36525971,114.34,114.29,8.7496]
[1743704344747,17.36525971,114.34,114.29,30.6237]
[1743704345852,27.14209819,114.34,114.29,57.76579819]
[1743704346677,27.14209819,114.34,114.29,30.6237]
[1743704347660,27.14209819,114.32,114.29,8.7496]
[1743704347862,27.14209819,114.33,114.29,8.7496]
[1743704348655,27.14209819,114.33,114.28,8.7504]
[1743704348856,27.14209819,114.33,114.28,57.76849819]
[1743704349369,27.14209819,114.33,114.28,30.6264]
[1743704349568,27.14209819,114.33,114.28,57.76849819]
[1743704350547,27.14209819,114.33,114.28,30.6264]
[1743704350752,27.14209819,114.32,114.28,30.6264]
[1743704351171,20.0,114.33,114.28,30.6264]
[1743704351172,27.14209819,114.31,114.28,8.7504]
[1743704352373,27.14209819,114.31,114.27,8.7512]
[1743704353161,27.14209819,114.3,114.27,8.7512]
[1743704354357,27.14209819,114.31,114.27,8.7512]
[1743704355272,27.14209819,114.31,114.26,57.77299819]
[1743704355980,27.14209819,114.31,114.26,30.6309]
[1743704357259,27.14209819,114.31,114.26,57.77299819]
[1743704358180,136.0,114.32,114.27,27.14209819]
[1743704358685,136.0,114.32,114.26,30.6309]
[1743704358884,136.0,114.32,114.27,27.14209819]
[1743704359183,27.14209819,114.29,114.26,8.7519]
[1743704359368,27.14209819,114.28,114.26,8.7519]
[1743704359678,27.14209819,114.29,114.26,8.7519]
[1743704360259,27.14209819,114.29,114.25,8.7527]
[1743704360484,136.0,114.3,114.25,57.77659819]
[1743704360485,163.14209819,114.3,114.25,57.77659819]
[1743704361181,136.0,114.3,114.26,27.14209819]
[1743704361356,163.14209819,114.3,114.25,57.77659819]
[1743704361864,136.0,114.3,114.26,27.14209819]
[1743704362263,27.14209819,114.29,114.25,30.6345]
[1743704362482,27.14209819,114.29,114.25,57.77659819]
[1743704362669,136.0,114.3,114.26,27.14209819]
[1743704363084,163.14209819,114.3,114.25,57.77659819]
[1743704364075,27.14209819,114.3,114.25,30.6345]
[1743704366679,27.14209819,114.29,114.25,30.6345]
[1743704367766,17.38622114,114.29,114.25,30.6345]
[1743704368589,17.52838271,114.3,114.25,30.6345]
[1743704369285,17.38622114,114.29,114.25,30.6345]
[1743704369989,136.0,114.31,114.27,17.38622114]
[1743704370162,136.0,114.31,114.28,17.38622114]
[1743704370495,150.06001325,114.35,114.3,17.38622114]
[1743704370785,31.44623439,114.35,114.31,8.7481]
[1743704370993,17.38622114,114.35,114.31,8.7481]